bitfinex-derivatives/quotes_SOLF0:USTF0_20250624
["timestamp","ask_amount","ask_price","bid_price","bid_amount"]
[1750739912406,6.9765,143.25,143.21,6.9781]
[1750739914612,6.9768,143.24,143.21,6.9781]
[1750739917618,8.80002596,143.25,143.17,40.92396429]
[1750739917816,37.88962252,143.26,143.19,3.50962252]
[1750739919717,6.9768,143.24,143.21,6.9781]
[1750739923633,6.9768,143.24,143.2,6.9785]
[1750739925029,6.9773,143.23,143.2,6.9785]
[1750739926428,6.9773,143.23,143.2,9.22312117]
[1750739927117,6.9773,143.23,143.19,9.22362117]
[1750739927309,2.24462117,143.22,143.18,8.76858546]
[1750739927511,36.66462117,143.22,143.18,2.24462117]
[1750739927717,2.24462117,143.2,143.16,2.24462117]
[1750739927921,9.22422117,143.19,143.15,2.24462117]
[1750739928117,9.22422117,143.19,143.15,9.22532117]
[1750739929624,9.22422117,143.19,143.16,6.9807]
[1750739929920,6.9796,143.19,143.16,6.9807]
[1750739940129,6.9796,143.19,143.15,6.981]
[1750739940324,8.25494973,143.21,143.15,6.981]
[1750739940325,6.98,143.18,143.15,6.981]
[1750739941123,6.9803,143.17,143.14,6.9816]
[1750739943127,6.9808,143.16,143.13,232.63848625]
[1750739943333,3.50944973,143.17,143.11,6.52396429]
[1750739943629,5.75114973,143.17,143.1,6.9831]
[1750739943822,6.9819,143.14,143.1,6.9831]
[1750739944025,41.3819,143.14,143.1,6.9831]
[1750739946144,41.3819,143.14,143.11,6.9831]
[1750739946830,34.4,143.14,143.11,6.9831]
[1750739949828,34.4,143.14,143.12,6.9824]
[1750739953030,41.3818,143.14,143.11,6.983]
[1750739957839,34.4,143.14,143.11,6.983]
[1750739958031,34.4,143.14,143.12,6.9824]
[1750739959430,34.4,143.14,143.13,6.9821]
[1750739959632,45.86930134,143.17,143.13,6.9821]
[1750739960642,38.88900134,143.17,143.14,6.9814]
[1750739961442,45.86930134,143.17,143.14,6.9814]
[1750739961942,2.24730134,143.16,143.14,6.9814]
[1750739963844,2.24730134,143.16,143.13,6.9819]
[1750739964933,43.622,143.17,143.13,6.9819]
[1750739965134,2.24730134,143.16,143.13,6.9819]
[1750739965536,45.86930134,143.17,143.13,9.22920134]
[1750739967734,6.9807,143.16,143.13,9.22920134]
[1750739968533,9.22800134,143.16,143.13,6.9819]
[1750739969237,45.86940134,143.17,143.14,6.9816]
[1750739975637,6.9794,143.19,143.15,2.24730134]
[1750739975947,36.64730134,143.2,143.16,2.24730134]
[1750739976150,34.4,143.2,143.18,2.24730134]
[1750739976341,34.4,143.2,143.18,9.22670134]
[1750739980446,34.4,143.2,143.19,6.9792]
[1750739980645,34.4,143.2,143.19,9.22650134]
[1750739980952,6.978,143.22,143.19,9.22650134]
[1750739982144,6.978,143.22,143.19,2.24730134]
[1750739983456,6.978,143.22,143.19,9.22650134]
[1750739985052,34.38,143.23,143.2,2.24730134]
[1750739985252,34.38,143.23,143.21,2.24730134]
[1750739985955,34.38,143.23,143.21,9.22540134]
[1750739988658,34.38,143.23,143.15,40.90396429]
[1750739988861,2.24730134,143.21,143.17,2.24730134]
[1750739989153,2.24730134,143.22,143.18,2.24730134]
[1750739989459,9.22520134,143.22,143.18,9.22670134]
[1750739989660,6.9779,143.22,143.19,2.24730134]
[1750739991163,6.9779,143.22,143.18,9.22670134]
[1750739991861,6.9779,143.22,143.19,6.9792]
[1750739992058,43.60470134,143.23,143.19,2.24730134]
[1750739992359,36.62730134,143.23,143.19,2.24730134]
[1750739993661,6.9778,143.22,143.19,9.22620134]
[1750739998365,6.9778,143.22,143.19,2.24730134]
[1750740000165,6.9782,143.21,143.19,2.24730134]
[1750740000763,6.978,143.22,143.19,2.24730134]
[1750740001160,6.978,143.22,143.2,2.24730134]
[1750740001966,6.978,143.22,143.18,6.9795]
[1750740001967,36.62730134,143.23,143.19,2.24730134]
[1750740002958,6.9786,143.21,143.19,2.24730134]
[1750740004169,6.9786,143.21,143.18,9.22700134]
[1750740007271,6.9788,143.2,143.18,2.24730134]
[1750740007473,2.24730134,143.2,143.16,8.77126563]
[1750740007772,2.24730134,143.2,143.15,2.24730134]
[1750740008174,35.0,143.19,143.15,2.24730134]
[1750740008471,6.9801,143.18,143.15,9.22820134]
[1750740008674,35.0,143.19,143.16,2.24730134]
[1750740008975,41.9794,143.19,143.16,2.24730134]
[1750740009170,41.9794,143.19,143.16,9.22800134]
[1750740010279,2.24730134,143.18,143.14,6.52396429]
[1750740010480,2.24730134,143.18,143.14,2.24730134]
[1750740010668,37.4382,143.19,143.13,6.52396429]
[1750740010669,39.68550134,143.19,143.15,2.24730134]
[1750740010869,35.0,143.19,143.16,2.24730134]
[1750740011470,41.9794,143.19,143.16,9.22790134]
[1750740016873,35.0,143.19,143.18,6.9797]
[1750740017075,35.0,143.19,143.16,6.52396429]
[1750740017270,35.0,143.19,143.15,2.24730134]
[1750740017271,37.24730134,143.19,143.15,2.24730134]
[1750740017570,6.98,143.18,143.15,2.24730134]
[1750740017782,37.24730134,143.19,143.14,15.75256563]
[1750740017978,6.9805,143.17,143.14,8.77126563]
[1750740020184,6.9805,143.17,143.14,15.75276563]
[1750740020983,6.9805,143.17,143.15,2.24730134]
[1750740022778,6.9805,143.17,143.15,8.77126563]
[1750740023276,6.9805,143.17,143.15,2.24730134]
[1750740025182,41.9794,143.19,143.16,9.22770134]
[1750740025389,41.9794,143.19,143.17,2.24730134]
[1750740025687,35.0,143.19,143.17,9.22700134]
[1750740026984,41.9778,143.22,143.18,2.24730134]
[1750740027184,5.25996247,143.21,143.19,2.24730134]
[1750740027483,41.9778,143.22,143.19,2.24730134]
[1750740027682,5.25985638,143.21,143.19,2.24730134]
[1750740027884,41.9778,143.22,143.19,2.24730134]
[1750740028692,41.9778,143.22,143.19,9.22620134]
[1750740042496,35.0,143.22,143.21,6.9782]
[1750740042696,40.26882269,143.22,143.21,6.9782]
[1750740044108,40.26869933,143.22,143.21,6.9782]
[1750740044515,40.26869933,143.22,143.2,9.22580134]
[1750740044710,35.0,143.22,143.19,2.24730134]
[1750740045715,41.9781,143.22,143.19,6.9792]
[1750740046514,41.9781,143.22,143.19,9.22650134]
[1750740052613,34.82,143.25,143.21,2.24730134]
[1750740052819,5.26752823,143.24,143.23,2.24730134]
[1750740053211,5.26708073,143.24,143.23,2.24730134]
[1750740053810,5.26708073,143.24,143.22,9.22460134]
[1750740054010,41.7964,143.25,143.22,2.24730134]
[1750740054212,41.7964,143.25,143.21,6.9781]
[1750740054213,5.26683492,143.24,143.21,9.22540134]
[1750740054413,41.7964,143.25,143.21,9.22540134]
[1750740055317,34.82,143.25,143.2,6.52396429]
[1750740055520,2.24730134,143.21,143.18,6.52396429]
[1750740055720,37.06730134,143.2,143.16,15.75166563]
[1750740055913,44.04620134,143.2,143.16,15.75166563]
[1750740056113,44.04620134,143.2,143.16,9.22770134]
[1750740056312,41.7989,143.2,143.16,15.75166563]
[1750740056522,41.7989,143.2,143.16,9.22770134]
[1750740056924,44.04620134,143.2,143.16,9.22770134]
[1750740057525,34.82,143.2,143.17,2.24730134]
[1750740058212,34.82,143.2,143.17,9.22710134]
[1750740058422,34.82,143.2,143.17,2.24730134]
[1750740058817,34.82,143.2,143.17,9.22730134]
[1750740059012,34.82,143.2,143.18,2.24730134]
[1750740061622,34.82,143.2,143.18,9.22690134]
[1750740064013,34.82,143.2,143.19,2.24730134]
[1750740064219,39.4408,143.23,143.19,2.24730134]
[1750740064417,5.26009624,143.22,143.2,2.24730134]
[1750740064625,9.22370134,143.25,143.21,2.24730134]
[1750740064931,45.36674925,143.24,143.22,2.24730134]
[1750740065127,34.82,143.24,143.22,2.24730134]
[1750740066318,34.82,143.24,143.21,6.9779]
[1750740068428,41.7969,143.24,143.21,6.9779]
[1750740068927,41.7969,143.24,143.2,3.50660985]
[1750740069227,6.9775,143.23,143.2,6.9785]
[1750740069619,12.24287649,143.23,143.2,6.9785]
[1750740070028,6.9775,143.23,143.2,6.9785]
[1750740070529,5.26504877,143.22,143.2,6.9785]
[1750740070729,5.26504877,143.22,143.19,6.5211774]
[1750740070730,6.9778,143.22,143.19,13.5001774]
[1750740070920,6.9778,143.22,143.19,6.979]
[1750740073133,6.9778,143.22,143.19,13.5001774]
[1750740074231,6.9778,143.22,143.19,6.979]
[1750740074434,6.9778,143.22,143.19,13.5001774]
[1750740074627,6.9778,143.22,143.19,6.979]
[1750740076732,6.9778,143.22,143.18,17.00728725]
[1750740077140,34.82,143.24,143.18,17.00728725]
[1750740077739,6.9782,143.22,143.18,17.00728725]
[1750740079235,6.9782,143.21,143.18,17.00728725]
[1750740083139,6.9779,143.22,143.19,6.9791]
[1750740084946,5.27672841,143.21,143.19,6.9791]
[1750740085240,34.82,143.24,143.2,6.9786]
[1750740085434,10.57723451,143.23,143.2,6.9786]
[1750740085635,5.28723228,143.22,143.2,6.9786]
[1750740085835,34.82,143.24,143.2,6.9786]
[1750740086034,10.57669667,143.23,143.2,6.9786]
[1750740086236,5.28681595,143.22,143.2,6.9786]
[1750740086535,6.9775,143.23,143.19,6.979]
[1750740086736,5.28670414,143.22,143.19,6.979]
[1750740087031,6.9775,143.23,143.19,6.979]
[1750740087236,5.28670414,143.22,143.19,6.979]
[1750740087448,6.9775,143.23,143.19,6.979]
[1750740088047,5.28694198,143.22,143.19,6.979]
[1750740088238,6.9775,143.23,143.2,2.24485677]
[1750740088541,5.28690178,143.22,143.2,2.24485677]
[1750740088741,6.9775,143.23,143.2,2.24485677]
[1750740088943,5.28659026,143.22,143.2,2.24485677]
[1750740089144,6.9775,143.23,143.2,2.24485677]
[1750740089344,5.28620337,143.22,143.2,2.24485677]
[1750740089548,6.9775,143.23,143.2,2.24485677]
[1750740089845,5.28618232,143.22,143.2,2.24485677]
[1750740090035,6.9775,143.23,143.2,2.24485677]
[1750740090234,5.28635646,143.22,143.2,2.24485677]
[1750740090545,6.9775,143.23,143.2,2.24485677]
[1750740090735,5.28656583,143.22,143.2,2.24485677]
[1750740090936,6.9775,143.23,143.2,2.24485677]
[1750740091243,5.28695385,143.22,143.2,2.24485677]
[1750740091541,6.9775,143.23,143.2,2.24485677]
[1750740091747,5.28670969,143.22,143.2,2.24485677]
[1750740091937,41.7969,143.24,143.21,2.24485677]
[1750740092133,10.57639994,143.23,143.21,2.24485677]
[1750740092331,5.2868055,143.22,143.21,2.24485677]
[1750740093843,5.2868055,143.22,143.21,9.22305677]
[1750740094843,5.2868055,143.22,143.2,9.22335677]
[1750740095043,6.9773,143.23,143.2,9.22335677]
[1750740095246,5.28671668,143.22,143.2,9.22335677]
[1750740095547,6.9773,143.23,143.2,9.22335677]
[1750740095742,5.28681241,143.22,143.2,9.22335677]
[1750740095938,6.9773,143.23,143.2,9.22335677]
[1750740096143,5.28681273,143.22,143.2,9.22335677]
[1750740096341,6.9773,143.23,143.2,9.22335677]
[1750740096546,5.28654115,143.22,143.2,9.22335677]
[1750740096748,6.9773,143.23,143.2,9.22335677]
[1750740096949,5.28649408,143.22,143.2,9.22335677]
[1750740097149,6.9773,143.23,143.2,9.22335677]
[1750740097447,5.28644243,143.22,143.2,9.22335677]
[1750740097647,6.9773,143.23,143.2,9.22335677]
[1750740097849,5.28629099,143.22,143.2,9.22335677]
[1750740098148,6.9773,143.23,143.2,9.22335677]
[1750740098348,5.28650582,143.22,143.2,9.22335677]
[1750740098548,6.9773,143.23,143.2,9.22335677]
[1750740098748,5.286505,143.22,143.2,9.22335677]
[1750740098947,6.9773,143.23,143.2,9.22335677]
[1750740099150,5.28649858,143.22,143.2,9.22335677]
[1750740099339,6.9773,143.23,143.2,9.22335677]
[1750740099543,5.28924773,143.22,143.2,9.22335677]
[1750740099743,6.9773,143.23,143.2,9.22335677]
[1750740099940,5.29019508,143.22,143.2,9.22335677]
[1750740100142,6.9773,143.23,143.2,9.22335677]
[1750740100345,5.29024421,143.22,143.2,9.22335677]
[1750740100651,6.9773,143.23,143.2,9.22335677]
[1750740100847,5.29027844,143.22,143.2,9.22335677]
[1750740101047,6.9773,143.23,143.2,9.22335677]
[1750740101249,5.29022931,143.22,143.2,9.22335677]
[1750740101448,6.9773,143.23,143.2,9.22335677]
[1750740101646,5.29022931,143.22,143.2,9.22335677]
[1750740101848,6.9773,143.23,143.2,9.22335677]
[1750740102049,5.28983225,143.22,143.2,9.22335677]
[1750740102249,6.9773,143.23,143.2,9.22335677]
[1750740102448,5.29004479,143.22,143.2,9.22335677]
[1750740102649,37.06485677,143.24,143.2,9.22335677]
[1750740102650,41.7969,143.24,143.21,6.9782]
[1750740102849,10.58144019,143.23,143.21,6.9782]
[1750740103049,5.29001321,143.22,143.21,9.22274381]
[1750740104750,5.29101972,143.22,143.21,9.22274381]
[1750740105558,5.29109915,143.22,143.21,9.22274381]
[1750740107755,34.82,143.24,143.22,6.9777]
[1750740107952,5.2919619,143.23,143.22,9.22224381]
[1750740110557,5.2919619,143.23,143.22,9.22186736]
[1750740112463,5.2919619,143.23,143.21,13.4991774]
[1750740112664,41.7968,143.24,143.22,2.24416736]
[1750740112866,5.29516343,143.23,143.22,2.24416736]
[1750740113365,5.29615252,143.23,143.22,2.24416736]
[1750740114166,5.29615252,143.23,143.21,13.4991774]
[1750740114464,41.7968,143.24,143.22,2.24416736]
[1750740114667,5.29886443,143.23,143.22,2.24416736]
[1750740115273,5.29886443,143.23,143.21,13.4991774]
[1750740115477,41.7968,143.24,143.21,9.22216736]
[1750740115773,10.59560262,143.23,143.21,9.22216736]
[1750740115978,5.2977413,143.22,143.21,2.24416736]
[1750740116165,6.9773,143.23,143.21,2.24416736]
[1750740116477,5.29738622,143.22,143.21,2.24416736]
[1750740119077,6.9773,143.23,143.21,2.24416736]
[1750740120274,5.29431439,143.22,143.21,2.24416736]
[1750740120778,12.27211439,143.22,143.2,2.24452558]
[1750740121076,5.2943746,143.21,143.18,6.5211774]
[1750740121275,39.9743746,143.2,143.18,6.5211774]
[1750740121574,34.68,143.2,143.18,6.5211774]
[1750740121970,34.68,143.2,143.17,8.76699395]
[1750740122772,6.9792,143.19,143.17,8.76699395]
[1750740124878,41.659,143.2,143.17,8.76699395]
[1750740125485,6.9793,143.19,143.17,8.76699395]
[1750740127076,6.9797,143.18,143.17,8.76699395]
[1750740127282,6.9797,143.18,143.16,8.76699395]
[1750740128785,6.9793,143.19,143.16,8.76699395]
[1750740128984,36.92581655,143.2,143.16,8.76699395]
[1750740129180,5.2811247,143.19,143.17,2.24581655]
[1750740129479,41.6587,143.2,143.18,2.24581655]
[1750740130486,5.27847707,143.19,143.16,6.9805]
[1750740130677,41.6587,143.2,143.18,2.24581655]
[1750740130878,5.27847707,143.19,143.18,2.24581655]
[1750740131784,41.6587,143.2,143.18,2.24581655]
[1750740136481,34.68,143.2,143.19,2.24581655]
[1750740136674,5.28644271,143.22,143.19,2.24581655]
[1750740136875,5.27924298,143.21,143.16,8.7647774]
[1750740137082,6.9778,143.22,143.2,2.24581655]
[1750740137283,5.27925035,143.21,143.2,2.24581655]
[1750740138883,5.27925035,143.21,143.2,9.22451655]
[1750740139088,34.56,143.23,143.2,2.24581655]
[1750740139286,5.27916367,143.22,143.21,2.24581655]
[1750740139691,34.56,143.23,143.21,2.24581655]
[1750740143494,41.5374,143.23,143.21,2.24581655]
[1750740155899,34.56,143.23,143.21,9.22401655]
[1750740157006,34.56,143.23,143.22,2.24581655]
[1750740159603,34.56,143.23,143.22,9.22351655]
[1750740159903,34.56,143.23,143.22,6.9777]
[1750740160093,34.56,143.23,143.22,9.22351655]
[1750740161506,34.56,143.23,143.22,2.24581655]
[1750740162404,34.56,143.23,143.21,9.22391655]
[1750740166705,34.56,143.23,143.21,6.9781]
[1750740167010,36.80501337,143.23,143.18,6.5211774]
[1750740167207,10.53532808,143.22,143.16,6.5211774]
[1750740167410,2.24501337,143.2,143.16,8.76619077]
[1750740167912,6.9793,143.19,143.16,15.74669077]
[1750740168110,6.9793,143.19,143.16,15.74757396]
[1750740168900,9.22479656,143.2,143.16,15.74757396]
[1750740169611,6.9793,143.19,143.16,15.74757396]
[1750740173607,9.22479656,143.2,143.16,15.74757396]
[1750740174206,6.9789,143.2,143.17,9.22599656]
[1750740176017,9.22479656,143.2,143.17,6.9801]
[1750740177820,9.22479656,143.2,143.16,15.74757396]
[1750740178119,6.9795,143.19,143.16,15.74757396]
[1750740178421,6.9795,143.19,143.16,2.24589656]
[1750740179011,6.9798,143.18,143.16,2.24589656]
[1750740180722,6.9802,143.17,143.15,8.76707396]
[1750740181013,34.52,143.19,143.15,2.24589656]
[1750740181214,34.52,143.19,143.17,2.24589656]
[1750740181412,34.52,143.19,143.16,2.24589656]
[1750740181815,41.4995,143.19,143.17,2.24589656]
[1750740182407,41.4995,143.19,143.16,9.22649656]
[1750740186426,34.52,143.19,143.17,9.22589656]
[1750740187320,34.52,143.19,143.17,2.24589656]
[1750740190733,41.4993,143.19,143.16,6.5211774]
[1750740190931,41.4993,143.19,143.16,8.76707396]
[1750740194142,41.4993,143.19,143.16,15.74767396]
[1750740195544,41.4993,143.19,143.17,2.24589656]
[1750740195845,41.4993,143.19,143.16,13.5017774]
[1750740196041,41.4993,143.19,143.16,9.22649656]
[1750740198146,6.9798,143.18,143.16,2.24589656]
[1750740200439,41.4994,143.19,143.16,9.22649656]
[1750740204450,41.4994,143.19,143.16,15.74767396]
[1750740206146,41.4994,143.19,143.17,2.24589656]
[1750740207656,34.52,143.19,143.17,9.22609656]
[1750740207954,34.52,143.19,143.16,6.5211774]
[1750740208157,34.52,143.19,143.17,2.24589656]
[1750740208348,34.52,143.19,143.18,2.24589656]
[1750740208656,6.9784,143.21,143.18,2.24589656]
[1750740208844,5.28187198,143.2,143.19,2.24589656]
[1750740209351,6.9784,143.21,143.19,2.24589656]
[1750740211259,41.5416,143.22,143.19,2.24589656]
[1750740211260,43.8813,143.22,143.2,2.24589656]
[1750740211461,5.28489425,143.21,143.19,9.22489656]
[1750740211667,43.8813,143.22,143.19,8.76707396]
[1750740211853,43.8813,143.22,143.19,2.24589656]
[1750740211854,5.28435437,143.21,143.19,2.24589656]
[1750740212054,43.8813,143.22,143.19,8.76707396]
[1750740212257,5.28439332,143.21,143.19,8.76707396]
[1750740212456,43.8813,143.22,143.19,8.76707396]
[1750740212761,5.28441685,143.21,143.19,2.24589656]
[1750740212957,43.8813,143.22,143.19,2.24589656]
[1750740213157,5.28430177,143.21,143.19,2.24589656]
[1750740213350,43.8813,143.22,143.19,2.24589656]
[1750740213551,5.28430177,143.21,143.19,2.24589656]
[1750740213851,43.8813,143.22,143.19,2.24589656]
[1750740214051,5.28429774,143.21,143.19,2.24589656]
[1750740214252,6.9783,143.21,143.18,13.5006774]
[1750740214448,6.9783,143.21,143.18,15.74657396]
[1750740215746,6.9783,143.21,143.16,8.68388824]
[1750740215747,5.28336275,143.2,143.19,6.9792]
[1750740215952,34.5,143.22,143.19,6.9792]
[1750740215953,34.5,143.22,143.19,9.22509656]
[1750740216162,5.28341431,143.21,143.19,9.22509656]
[1750740216464,34.5,143.22,143.19,9.22509656]
[1750740216758,5.2833805,143.21,143.19,9.22509656]
[1750740216954,34.5,143.22,143.19,9.22509656]
[1750740217159,5.28300965,143.21,143.19,9.22509656]
[1750740217361,34.5,143.22,143.19,9.22509656]
[1750740217561,5.2830134,143.21,143.19,9.22509656]
[1750740217754,41.4778,143.22,143.19,9.22509656]
[1750740217955,5.28304301,143.21,143.19,9.22509656]
[1750740218254,41.4778,143.22,143.19,9.22509656]
[1750740218460,5.28247684,143.21,143.19,9.22509656]
[1750740218661,41.4778,143.22,143.19,9.22509656]
[1750740218858,5.28836937,143.21,143.19,9.22509656]
[1750740219057,34.5,143.22,143.2,6.9787]
[1750740219255,5.28850105,143.21,143.2,6.9787]
[1750740219561,5.28850105,143.21,143.2,9.22459656]
[1750740221057,5.28850105,143.21,143.18,6.5211774]
[1750740221256,34.5,143.22,143.18,8.76707396]
[1750740221453,5.28735001,143.21,143.18,8.76707396]
[1750740221649,6.9783,143.21,143.18,15.74647396]
[1750740222050,6.9783,143.21,143.18,15.74587206]
[1750740222762,6.9783,143.21,143.18,9.22469466]
[1750740223061,6.9783,143.21,143.18,15.74587206]
[1750740225359,6.9783,143.21,143.18,9.22469466]
[1750740226060,6.9783,143.21,143.18,15.74587206]
[1750740231870,6.9783,143.21,143.18,9.22469466]
[1750740234367,2.24529466,143.21,143.17,6.5211774]
[1750740234675,10.5582914,143.2,143.16,8.76647206]
[1750740234869,5.27942358,143.19,143.16,13.5015774]
[1750740235070,9.22409466,143.2,143.16,13.5015774]
[1750740235270,5.27908476,143.19,143.16,13.5015774]
[1750740235470,9.22409466,143.2,143.16,13.5015774]
[1750740235776,5.27895092,143.19,143.16,13.5015774]
[1750740236078,2.24529466,143.17,143.15,6.5211774]
[1750740236379,7.52340441,143.16,143.12,8.76647206]
[1750740236578,9.22883151,143.15,143.12,6.5211774]
[1750740236871,36.72743151,143.14,143.11,6.5211774]
[1750740237083,6.9826,143.12,143.09,6.5211774]
[1750740237276,2.24743151,143.12,143.08,8.76860891]
[1750740237675,9.23033151,143.12,143.08,2.24743151]
[1750740237876,9.23033151,143.12,143.07,9.23213151]
[1750740238076,5.2700749,143.11,143.07,9.23213151]
[1750740238382,34.48,143.1,143.07,6.9847]
[1750740240568,34.48,143.1,143.06,3.51359859]
[1750740240882,34.48,143.1,143.08,3.51359859]
[1750740241179,34.48,143.1,143.09,6.9841]
[1750740242570,34.48,143.1,143.06,6.5211774]
[1750740242777,37.99490921,143.1,143.03,10.03608661]
[1750740243179,34.48,143.1,143.03,10.03608661]
[1750740243379,34.48,143.1,143.05,6.986]
[1750740244682,41.4636,143.1,143.05,6.986]
[1750740245971,37.99490921,143.1,143.02,3.51490921]
[1750740246176,34.48,143.1,143.02,3.51490921]
[1750740246377,41.4638,143.1,143.02,3.51490921]
[1750740246585,41.4638,143.1,143.04,3.51490921]
[1750740247085,41.4638,143.1,143.05,6.9856]
[1750740248087,6.9842,143.09,143.05,6.9856]
[1750740251093,41.4637,143.1,143.05,6.9856]
[1750740253687,41.4637,143.1,143.05,3.51370038]
[1750740253688,34.48,143.1,143.05,3.51370038]
[1750740254078,34.48,143.1,143.06,6.9854]
[1750740254686,34.48,143.1,143.07,6.985]
[1750740256993,34.48,143.1,143.07,3.51370038]
[1750740257402,34.52,143.13,143.07,3.51370038]
[1750740257694,34.52,143.13,143.1,6.9834]
[1750740259297,41.5022,143.13,143.09,6.984]
[1750740260093,34.52,143.13,143.1,6.9836]
[1750740265104,41.5022,143.13,143.1,6.9836]
[1750740265797,41.5022,143.13,143.09,6.9839]
[1750740269198,34.52,143.13,143.1,6.9836]
[1750740269599,34.52,143.13,143.11,6.9829]
[1750740270104,34.52,143.13,143.09,3.51271274]
[1750740270406,34.52,143.13,143.1,6.9833]
[1750740273999,34.52,143.13,143.11,6.983]
[1750740274994,34.52,143.13,143.12,9.2305928]
[1750740276311,34.52,143.13,143.12,6.9827]
[1750740276605,36.7279,143.16,143.13,6.982]
[1750740278097,43.7086,143.16,143.13,6.982]
[1750740284318,36.7279,143.16,143.13,6.982]
[1750740286834,34.52,143.16,143.12,3.51113352]
[1750740288018,34.52,143.16,143.14,6.9814]
[1750740288320,34.52,143.16,143.12,3.51113352]
[1750740288622,34.52,143.16,143.14,6.9813]
[1750740293422,34.52,143.16,143.15,6.9812]
[1750740293824,2.325,143.19,143.13,3.51113352]
[1750740294125,34.5,143.18,143.13,3.51113352]
[1750740294626,34.5,143.18,143.16,6.9804]
[1750740296314,34.5,143.18,143.16,9.22641911]
[1750740301224,34.5,143.18,143.16,6.9804]
[1750740301431,34.5,143.18,143.14,2.24601911]
[1750740301432,36.74601911,143.18,143.14,2.24601911]
[1750740301827,43.72611911,143.18,143.14,9.22741911]
[1750740303023,5.23392916,143.17,143.14,9.22741911]
[1750740303326,43.72611911,143.18,143.14,9.22741911]
[1750740303523,5.2344668,143.17,143.14,9.22741911]
[1750740303723,43.72611911,143.18,143.14,9.22741911]
[1750740303916,5.23534358,143.17,143.14,9.22741911]
[1750740304118,36.74601911,143.18,143.14,2.24601911]
[1750740304319,5.23564529,143.17,143.14,2.24601911]
[1750740304527,36.74601911,143.18,143.15,2.24601911]
[1750740304826,5.23299884,143.17,143.15,2.24601911]
[1750740305025,34.5,143.18,143.15,2.24601911]
[1750740305929,36.74601911,143.18,143.12,6.5211774]
[1750740306120,36.74601911,143.18,143.13,2.24601911]
[1750740306121,7.47885846,143.17,143.13,2.24601911]
[1750740306428,2.24601911,143.17,143.13,9.22781911]
[1750740307530,6.9808,143.16,143.13,9.22781911]
[1750740307730,2.24601911,143.17,143.13,9.22781911]
[1750740307930,2.24601911,143.17,143.13,6.9818]
[1750740308330,9.22641911,143.17,143.13,6.9818]
[1750740308526,5.23289711,143.16,143.13,6.9818]
[1750740308732,2.24709232,143.16,143.12,6.9826]
[1750740309833,12.21545405,143.15,143.12,6.9826]
[1750740310044,6.9812,143.15,143.12,6.9826]
[1750740310239,43.70909232,143.14,143.09,8.76826972]
[1750740310439,34.48,143.13,143.09,8.76826972]
[1750740310638,34.48,143.13,143.1,6.9834]
[1750740312534,34.48,143.13,143.1,10.03348205]
[1750740313327,34.48,143.13,143.12,6.9827]
[1750740318445,34.48,143.13,143.11,13.5042774]
[1750740318643,34.48,143.13,143.11,6.9831]
[1750740319147,34.48,143.13,143.1,6.5211774]
[1750740319334,34.48,143.13,143.09,6.5211774]
[1750740319636,41.4626,143.13,143.09,13.51276361]
[1750740319838,5.24501766,143.12,143.08,6.52866361]
[1750740320033,5.24498583,143.11,143.07,221.41990822]
[1750740320241,5.72920844,143.12,143.07,221.41990822]
[1750740320434,5.24498994,143.11,143.07,6.52866361]
[1750740320744,5.72920844,143.12,143.05,8.68388824]
[1750740320745,5.72920844,143.12,143.06,6.52866361]
[1750740321039,5.24778675,143.11,143.07,6.52866361]
[1750740321240,5.72920844,143.12,143.07,6.52866361]
[1750740321438,5.24784994,143.11,143.07,6.52866361]
[1750740321637,2.2152,143.12,143.07,6.52866361]
[1750740321833,5.24751047,143.11,143.07,6.52866361]
[1750740322032,2.2152,143.12,143.08,6.9842]
[1750740322234,5.24751448,143.11,143.08,6.9842]
[1750740322438,2.2152,143.12,143.08,6.9842]
[1750740322741,5.24739772,143.11,143.09,6.9842]
[1750740322942,2.2152,143.12,143.09,6.9842]
[1750740323944,6.9836,143.11,143.07,13.51376361]
[1750740324149,5.24419982,143.1,143.05,6.52866361]
[1750740324351,34.48,143.09,143.05,6.52866361]
[1750740324545,34.48,143.09,143.04,10.04267205]
[1750740325747,41.4645,143.09,143.05,6.9858]
[1750740327848,41.4645,143.09,143.06,6.9856]
[1750740330347,6.9851,143.08,143.04,6.9865]
[1750740330547,34.48,143.09,143.03,10.04267205]